Cogmind - Beta 13 @@@ ROGUE MODE // 2024.05.10 @ 02:44:40 Player: Millea Result: Destroyed by H-71 Marshal with Heavy Mass Driver Performance ------------- Evolutions (6) 3000 Regions Visited (10) 2000 Robots Destroyed (165) 825 Value Destroyed (5916) 5916 Prototype IDs (17) 340 Alien Tech Used (0) 0 Bonus (1017) 1017 TOTAL SCORE: 13098 Bonus ------- High Alert Combat Kills 421 Follower Combat Kills 622 Friendly Fire -26 Cogmind --------- Core Integrity 0/1150 Matter 97/300 Energy 63/100 System Corruption 0% Temperature Cool (0) Movement Core (50) Location -4/Factory Parts ------- > --- POWER (1) -------- (None) > --- PROPULSION (4) --- (None) > --- UTILITY (12) ----- (None) > --- WEAPON (2) ------- (None) > --- INVENTORY (5) ---- Improved Particle Charger Long-range Tractor Beam Wave Gun Cooled Particle Cannon Missile Launcher Peak State ------------ > --- POWER ------------ Neutrino Core > --- PROPULSION ------- Light Treads Improved Treads Armored Huge Wheel > --- UTILITY ---------- Advanced Power Amplifier Advanced Cooling System Advanced Cooling System Huge Storage Unit Long-range Terrain Scanner Advanced Transmission Jammer Phase Shifter Improved Cloaking Device Improved Medium Armor Plating Improved Thermal Shield Improved Shield Generator Hacking Suite > --- WEAPON ----------- Cooled Particle Cannon KE Penetrator > --- INVENTORY -------- Light Angular Momentum Engine Light Treads Advanced Cooling System Improved Particle Charger Weapon Cycler Graphene Brace Focal Shield Improved Force Field Authchip [Propulsion] Authchip [Device] Authchip [Storage] Long-range Tractor Beam Long-range Tractor Beam Wave Gun Wave Gun Improved Assault Rifle Heavy Assault Cannon Improved Proton Missile Launcher Mini Grenade Launcher Missile Launcher Missile Launcher Missile Launcher Missile Launcher Improved Datajack [Rating: 101] Favorites ----------- Power Light Nuclear Core Engine Ion Engine Power Core Light Nuclear Core Propulsion Light Treads Treads Light Treads Wheel Armored Huge Wheel Utility Huge Storage Unit Device Disposable Heat Sink Storage Huge Storage Unit Processor Salvage Targeting Computer Hackware Hacking Suite Protection Hardened Light Armor Plating Weapon Enhanced Autogun Energy Gun Small Laser Energy Cannon Cooled Particle Cannon Ballistic Gun Enhanced Autogun Ballistic Cannon Heavy Assault Cannon Launcher Mini Grenade Launcher Build | -11 -10 -9 -8 -7 -7 -7 -6 -5 -5 -4 ------- Run | Yrd Mat Mat Mat Fac Low Low Fac Fac Ext Fac Slots Evolved 12 | . . 2 2 2 . . 2 2 . 2 Power . | . . . . . . . . . . . Propulsion 2 | . . 1 . 1 . . . . . . Utility 10 | . . 1 2 1 . . 2 2 . 2 Weapon . | . . . . . . . . . . . Parts Attached 164 | 6 4 10 38 47 12 4 8 5 9 21 Power 17 | 1 . 1 5 3 . 1 1 . 2 3 Engine 8 | 1 . 1 1 1 . 1 . . 2 1 Core 9 | . . . 4 2 . . 1 . . 2 Reactor . | . . . . . . . . . . . Propulsion 38 | 2 1 5 13 11 1 1 . 1 2 1 Treads 27 | 2 . 5 10 6 1 . . . 2 1 Leg . | . . . . . . . . . . . Wheel 11 | . 1 . 3 5 . 1 . 1 . . Hover . | . . . . . . . . . . . Flight . | . . . . . . . . . . . Utility 78 | 1 3 2 15 21 8 2 6 3 4 13 Device 35 | . . . 4 8 4 1 1 3 2 12 Storage 6 | 1 2 . . 1 . 1 . . . 1 Processor 2 | . . 1 . . 1 . . . . . Hackware 4 | . . . 1 . . . 3 . . . Protection 31 | . 1 1 10 12 3 . 2 . 2 . Artifact . | . . . . . . . . . . . Weapon 31 | 2 . 2 5 12 3 . 1 1 1 4 Energy Gun 7 | 2 . . 3 2 . . . . . . Energy Cannon 9 | . . . . 5 1 . 1 1 . 1 Ballistic Gun 11 | . . 2 2 3 2 . . . 1 1 Ballistic Cannon 3 | . . . . 2 . . . . . 1 Launcher 1 | . . . . . . . . . . 1 Special Weapon . | . . . . . . . . . . . Impact Weapon . | . . . . . . . . . . . Slashing Weapon . | . . . . . . . . . . . Piercing Weapon . | . . . . . . . . . . . Special Melee Weapon . | . . . . . . . . . . . Unidentified Prototypes 4 | . . . 1 1 2 . . . . . Parts Lost 90 | . 1 5 15 24 10 6 . 2 8 19 Power 12 | . . 1 3 3 1 . . . 2 2 Propulsion 25 | . 1 2 4 10 1 3 . . . 4 Utility 41 | . . . 7 8 6 3 . 1 5 11 Weapon 12 | . . 2 1 3 2 . . 1 1 2 Highest Loss Streak 19 | . 1 2 5 10 8 6 . 2 4 19 To Critical Strikes 1 | . . . . . . . . . . 1 Average Slot Usage (%) 88 | . 88 95 97 88 69 64 73 75 83 87 Engine 3 | . 14 10 2 . . . 1 . 3 . Core 3 | . . . 5 5 . . 4 5 1 4 Treads 16 | . 26 27 24 17 4 3 . . 3 9 Wheel 4 | . . 2 1 6 18 8 6 4 5 4 Device 13 | . . . 8 15 13 11 14 23 29 43 Storage 8 | . 14 11 9 7 7 7 8 5 5 4 Processor 5 | . . 10 9 2 3 7 6 5 4 . Hackware 1 | . . . . . . . 4 5 5 4 Protection 12 | . 3 11 17 17 11 8 10 11 9 4 Energy Gun 5 | . 28 14 5 . . . . . . . Energy Cannon 3 | . . . . 5 1 7 6 11 10 4 Ballistic Gun 6 | . . 7 12 5 6 7 5 . . 4 Naked Turns 10 | . . . . . . . . . . 10 Heaviest Build 133 | 12 88 89 112 119 119 116 113 119 125 133 Greatest Support 80 | 40 40 60 60 80 60 44 28 28 28 28 Greatest Overweight (x) 33 | . 5 5 10 33 2 3 4 4 4 4 Average Overweight (x) 2 | . 2 2 1 1 1 2 3 4 4 3 Largest Inventory Capacity 25 | 8 25 25 25 25 25 25 25 25 25 25 Average Capacity 24 | 6 24 25 25 25 25 25 25 25 25 24 Most Carried 25 | 2 5 21 25 25 25 25 25 23 24 25 Average Carried 20 | 1 4 10 24 23 22 24 22 21 22 23 Final Capacity 25 | 8 25 25 25 25 25 25 25 25 25 5 Final Carried 25 | 2 4 21 24 24 25 23 22 21 22 5 Class Distribution -------------------- 58% | Mutant 41% | Scavenger-Mutant Dominant Class ---------------- Mutant | -10/Materials Mutant | -9/Materials Mutant | -8/Materials Scavenger-Mutant | -7/Factory Mutant | -7/Lower Caves Mutant | -7/Lower Caves Mutant | -6/Factory Mutant | -5/Factory Scavenger-Mutant | -5/Extension Scavenger-Mutant | -4/Factory Resources | -11 -10 -9 -8 -7 -7 -7 -6 -5 -5 -4 ----------- Run | Yrd Mat Mat Mat Fac Low Low Fac Fac Ext Fac Matter Collected 3955 | 211 89 221 1392 1330 339 76 46 144 107 . Remotely . | . . . . . . . . . . . Salvage Created 8198 | . 241 624 2901 2720 480 175 143 234 423 257 Parts 385 | . 19 34 163 99 20 6 6 7 20 11 Haulers Intercepted 11 | . 2 2 3 3 1 . . . . . Recyclers Shooed 11 | . 1 2 3 4 . . . . 1 . Parts Field Recycled . | . . . . . . . . . . . Retrieved Matter . | . . . . . . . . . . . Parts Self-Destructed 26 | . . . . . 20 6 . . . . Prevented . | . . . . . . . . . . . Kills | -11 -10 -9 -8 -7 -7 -7 -6 -5 -5 -4 ------- Run | Yrd Mat Mat Mat Fac Low Low Fac Fac Ext Fac Combat Hostiles Destroyed 132 | . 7 10 46 38 7 4 3 4 8 5 Guns 80 | . 7 10 46 8 5 2 1 . . 1 Cannons 47 | . . . . 30 2 2 2 3 8 . AOE 4 | . . . . . . . . . . 4 Classes Destroyed 17 | . 4 2 7 3 . . . . 1 . Worker 11 | . 1 1 7 1 . . . . . 1 Builder 3 | . . . 1 2 . . . . . . Hauler 11 | . 2 2 3 3 1 . . . . . Recycler 12 | . . 1 2 9 . . . . . . Mechanic 1 | . . . 1 . . . . . . . Operator 1 | . . . . 1 . . . . . . Watcher 3 | . . . 1 1 . . . . 1 . Swarmer 18 | . 6 3 5 . . . 1 . 3 . Grunt 80 | . 1 4 28 27 7 4 1 1 3 4 Brawler 7 | . . . 1 4 . . 1 1 . . Duelist 2 | . . . 1 1 . . . . . . Protector 1 | . . . 1 . . . . . . . Sentry 17 | . . 3 9 3 . . . . 1 1 Hunter 1 | . . . . 1 . . . . . . Programmer 4 | . . . . 2 . . . 2 . . Heavy 1 | . . . 1 . . . . . . . Behemoth 1 | . . . . . . . . . 1 . Best Kill Streak 9 | . 6 4 6 9 4 4 3 4 3 4 Combat Bots Only 7 | . 6 3 6 7 4 4 3 4 3 4 Max Kills in Single Turn 2 | . 1 1 2 1 1 1 1 1 1 2 Gunslinging 1 | . . . 1 . . . . . . . Exploded 2 | . . . . . . . . . . 2 Melee . | . . . . . . . . . . . Uniques/NPCs Destroyed . | . . . . . . . . . . . Combat | -11 -10 -9 -8 -7 -7 -7 -6 -5 -5 -4 -------- Run | Yrd Mat Mat Mat Fac Low Low Fac Fac Ext Fac Hostile Shots Fired 1308 | . 86 100 270 358 101 57 60 36 81 159 Missed 356 | . 28 32 67 95 24 14 22 10 21 43 Damage Taken 15399 | . 513 767 3288 4078 1360 618 461 396 1100 2818 Core 2571 | . 80 121 381 322 233 17 58 104 46 1209 Absorbed by Shields 411 | . . . . 22 28 . . 137 165 59 Redirected to Shielding 218 | . 11 25 19 56 . . 27 32 48 . Ignored by Resistances 292 | . . . 99 . . 112 . . . 81 Regen/Repaired (Parts) 604 | . . 116 134 . . . . 231 . 123 Core Remaining (%) 66 | 100 68 69 30 . . 18 93 . 85 . Volleys Fired 656 | . 34 50 194 194 66 20 19 12 44 23 Largest 2 | . 2 2 2 2 2 2 2 2 2 2 Hottest 180 | . 80 80 138 126 55 53 113 180 90 90 Shots Fired 1132 | . 68 97 389 294 74 33 38 24 80 35 Gun 750 | . 68 97 389 80 66 20 15 . 3 12 Cannon 378 | . . . . 214 8 13 23 24 77 19 Launcher 4 | . . . . . . . . . . 4 Special . | . . . . . . . . . . . Kinetic 566 | . . 47 271 132 66 20 15 . 3 12 Thermal 562 | . 68 50 118 162 8 13 23 24 77 19 Explosive 4 | . . . . . . . . . . 4 Electromagnetic . | . . . . . . . . . . . Robot Hit Streak 16 | . 4 11 16 14 12 11 13 15 16 5 Robot Miss Streak 9 | . 4 5 9 6 2 1 1 2 6 6 Penetration Max 1 | . . . . 1 . . . . . 1 Secondary Targets 16 | . 4 2 9 1 . . . . . . Max Gunslinging Chain 1 | . 1 1 1 1 . . . . . . Shots Hit Robots 731 | . 37 64 254 191 53 28 20 19 49 16 Core Hits 304 | . 15 23 109 75 20 8 6 6 24 18 Critical Kills 1 | . . . . 1 . . . . . . Critical Parts Destroyed 5 | . . 1 2 1 1 . . . . . Critical Strikes 16 | . . 1 6 8 1 . . . . . Burn 4 | . . . 4 . . . . . . . Meltdown 1 | . . . . 1 . . . . . . Destroy 5 | . . 1 2 1 1 . . . . . Blast 6 | . . . . 6 . . . . . . Melee Attacks . | . . . . . . . . . . . Impact . | . . . . . . . . . . . Slashing . | . . . . . . . . . . . Piercing . | . . . . . . . . . . . Sneak Attacks . | . . . . . . . . . . . Combat Hostiles . | . . . . . . . . . . . Follow-up Attacks . | . . . . . . . . . . . Damage Inflicted 17689 | . 481 936 4693 6051 1039 571 442 672 1485 1319 Guns 8551 | . 458 905 4600 1083 823 250 172 . . 260 Cannons 8065 | . . . . 4949 216 321 270 672 1450 187 Explosions 872 | . . . . . . . . . . 872 Melee . | . . . . . . . . . . . Ramming 201 | . 23 31 93 19 . . . . 35 . Kinetic 8075 | . . 465 2978 3127 823 250 172 . . 260 Thermal 9118 | . 458 440 1622 2905 216 321 270 672 1450 764 Explosive 198 | . . . . . . . . . . 198 Electromagnetic 97 | . . . . . . . . . . 97 Impact . | . . . . . . . . . . . Slashing . | . . . . . . . . . . . Piercing . | . . . . . . . . . . . Highest Corruption 5 | . . . 1 4 4 4 . 4 5 . Average Corruption 2 | . . . 1 4 4 4 . 2 4 . Corruption Purged . | . . . . . . . . . . . Corruption Blocked . | . . . . . . . . . . . Effects 77 | . . . 9 31 12 6 . . 19 . Message Errors 16 | . . . 1 10 1 1 . . 3 . Matter Fused 22 | . . . 4 8 4 4 . . 2 . Heat Flow Errors 7 | . . . 1 1 2 1 . . 2 . Energy Discharges 8 | . . . 1 3 2 . . . 2 . Parts Rejected 3 | . . . . 2 . . . . 1 . Parts Fused 1 | . . . . . . . . . 1 . Data Loss (minor) 3 | . . . 1 1 1 . . . . . Data Loss (major) 4 | . . . . . 2 . . . 2 . Misfires 5 | . . . 1 2 . . . . 2 . Alerts 4 | . . . . 1 . . . . 3 . Weapon Failures 4 | . . . . 3 . . . . 1 . Overload Shots 10 | . . . . . . . 2 6 1 1 Overflow Damage 449 | . . . . 336 8 6 . 48 4 47 Projectiles 417 | . . . . 336 8 6 . 48 4 15 Explosions 32 | . . . . . . . . . . 32 Melee . | . . . . . . . . . . . Knockbacks 20 | . . . . 20 . . . . . . Impact 1 | . . . . 1 . . . . . . Kinetic 15 | . . . . 15 . . . . . . Secondary 4 | . . . . 4 . . . . . . Self-Inflicted Damage 110 | . . . 1 . . . . . 17 92 Shots 2 | . . . . . . . . . . 2 Rammed 18 | . 5 1 8 2 . . . . 2 . Targets Rammed 20 | . 5 2 9 2 . . . . 2 . Kicked . | . . . . . . . . . . . Crushed 2 | . . 1 1 . . . . . . . Highest Temperature 288 | . 228 38 262 212 284 85 30 288 173 55 Average Temperature 91 | . 68 12 100 90 169 22 11 154 47 23 Received Heat Transfer 5959 | . 36 264 1620 1980 675 405 129 44 165 641 Effects 1 | . . . . . 1 . . . . . Energy Bleed 1 | . . . . . 1 . . . . . Siege Activations . | . . . . . . . . . . . Robots Corrupted . | . . . . . . . . . . . Combat Hostiles . | . . . . . . . . . . . Parts Fried . | . . . . . . . . . . . Impact Corruptions . | . . . . . . . . . . . Robots Melted 2 | . . . . 1 . . . 1 . . Combat Hostiles 1 | . . . . . . . . 1 . . Parts Melted 25 | . . 4 10 8 1 1 . 1 . . Heat Transferred 13872 | . 1025 975 3478 4033 296 444 346 755 1961 559 Parts Sabotaged . | . . . . . . . . . . . Parts Stolen . | . . . . . . . . . . . Parts Stripped . | . . . . . . . . . . . Power Chain Reactions . | . . . . . . . . . . . Alert | -11 -10 -9 -8 -7 -7 -7 -6 -5 -5 -4 ------- Run | Yrd Mat Mat Mat Fac Low Low Fac Fac Ext Fac Peak Influence 993 | . 172 367 579 993 . . 378 302 411 236 Initial 263 | . . 68 91 263 . . 252 116 147 200 Average 243 | . 45 173 220 392 . . 281 186 270 161 Maximum Alert Level 3 | . . 1 2 3 . . 1 1 2 1 Low Security (%) 45 | 100 100 54 60 16 . . 16 62 31 34 Level 1 39 | . . 45 17 54 . . 83 37 58 65 Level 2 11 | . . . 21 16 . . . . 9 . Level 3 3 | . . . . 12 . . . . . . Level 4 . | . . . . . . . . . . . Level 5 . | . . . . . . . . . . . High Security . | . . . . . . . . . . . Max Security . | . . . . . . . . . . . Squads Dispatched 28 | . . . 6 14 . . . 3 2 3 Investigation 8 | . . . 2 4 . . . 1 1 . Extermination 4 | . . . . 3 . . . 1 . . Reinforcement 10 | . . . 3 3 . . . 1 1 2 Assault 3 | . . . 1 2 . . . . . . Garrison 3 | . . . . 2 . . . . . 1 Intercept . | . . . . . . . . . . . Searches Triggered . | . . . . . . . . . . . Construction Impeded 4 | . . . . 2 . . . . 1 1 Haulers Reinforced . | . . . . . . . . . . . Active Scanning Responses . | . . . . . . . . . . . Cargo Convoy Interrupts . | . . . . . . . . . . . Stealth | -11 -10 -9 -8 -7 -7 -7 -6 -5 -5 -4 --------- Run | Yrd Mat Mat Mat Fac Low Low Fac Fac Ext Fac Distress Signals 11 | . 1 . 6 3 . . . . . 1 Communications Jammed . | . . . . . . . . . . . Distress Signals . | . . . . . . . . . . . Times Spotted 225 | . 16 17 68 56 9 4 5 11 26 13 Peak Tracking Total 8 | . 8 8 7 8 5 4 3 5 6 6 Tactical Retreats 13 | . . 2 2 5 . . . 1 3 . Traps | -11 -10 -9 -8 -7 -7 -7 -6 -5 -5 -4 ------- Run | Yrd Mat Mat Mat Fac Low Low Fac Fac Ext Fac Traps Triggered 11 | . 1 . 2 5 . . 2 . . 1 Indirectly . | . . . . . . . . . . . Trap Hack Attempts . | . . . . . . . . . . . Triggered . | . . . . . . . . . . . Disarmed . | . . . . . . . . . . . Reprogrammed . | . . . . . . . . . . . Reused . | . . . . . . . . . . . Traps Extracted . | . . . . . . . . . . . Installed . | . . . . . . . . . . . Triggered . | . . . . . . . . . . . Machines | -11 -10 -9 -8 -7 -7 -7 -6 -5 -5 -4 ---------- Run | Yrd Mat Mat Mat Fac Low Low Fac Fac Ext Fac Machines Disabled 15 | . . . 1 4 . . 2 1 4 3 Max in Single Turn 2 | . . . 1 1 . . 1 1 1 2 Garrison Access 2 | . . . . 2 . . . . . . Machines Repaired . | . . . . . . . . . . . Machines Dismantled . | . . . . . . . . . . . Machines Sabotaged . | . . . . . . . . . . . Overloaded Fab Kills . | . . . . . . . . . . . Hacking | -11 -10 -9 -8 -7 -7 -7 -6 -5 -5 -4 --------- Run | Yrd Mat Mat Mat Fac Low Low Fac Fac Ext Fac Machines Accessed 35 | . 2 5 9 6 . . 3 2 6 2 Terminals 23 | . 2 3 7 2 . . 1 1 6 1 Fabricators 1 | . . . . . . . 1 . . . Repair Stations 5 | . . 1 1 1 . . . 1 . 1 Recycling Units . | . . . . . . . . . . . Scanalyzers 4 | . . 1 1 1 . . 1 . . . Garrison Access 2 | . . . . 2 . . . . . . Total Hacks 99 | . 4 13 26 16 . . 10 8 17 5 Successful 49 | . 3 9 13 4 . . 8 3 6 3 Failed 50 | . 1 4 13 12 . . 2 5 11 2 Catastrophic 9 | . 1 . 4 3 . . . 1 . . Database Lockouts . | . . . . . . . . . . . Manual 19 | . . 1 8 . . . 1 6 3 . Terminals 61 | . 4 6 18 6 . . 1 6 17 3 Fabricators 6 | . . . . . . . 6 . . . Repair Stations 9 | . . 2 2 1 . . . 2 . 2 Recycling Units . | . . . . . . . . . . . Scanalyzers 18 | . . 5 6 4 . . 3 . . . Garrison Access 5 | . . . . 5 . . . . . . Terminal Hacks 21 | . 3 2 6 2 . . . 1 6 1 Record 2 | . . 2 . . . . . . . . Robot Schematic 1 | . . . . 1 . . . . . . Prototype ID Bank 7 | . 2 . 4 1 . . . . . . Open Door 4 | . . . . . . . . . 4 . Branch Access Points 1 | . . . . . . . . 1 . . Terminal Index 1 | . . . . . . . . . . 1 Alert Level 2 | . . . 1 . . . . . 1 . Unreport Threat 2 | . . . 1 . . . . . 1 . Zone Layout 1 | . 1 . . . . . . . . . Fabricator Hacks 5 | . . . . . . . 5 . . . Load Schematic 3 | . . . . . . . 3 . . . Build 2 | . . . . . . . 2 . . . Repair Station Hacks 8 | . . 2 2 . . . . 2 . 2 Scan Component 4 | . . 1 1 . . . . 1 . 1 Repair 4 | . . 1 1 . . . . 1 . 1 Recycling Unit Hacks . | . . . . . . . . . . . Scanalyzer 14 | . . 5 5 2 . . 2 . . . Insert Component 8 | . . 3 3 1 . . 1 . . . Analyze 6 | . . 2 2 1 . . 1 . . . Garrison Access Hacks . | . . . . . . . . . . . Unauthorized Hacks 1 | . . . . . . . 1 . . . Terminals . | . . . . . . . . . . . Fabricators 1 | . . . . . . . 1 . . . Prioritize 1 | . . . . . . . 1 . . . Repair Stations . | . . . . . . . . . . . Recycling Units . | . . . . . . . . . . . Scanalyzers . | . . . . . . . . . . . Garrison Access . | . . . . . . . . . . . Data Cores Recovered . | . . . . . . . . . . . Used . | . . . . . . . . . . . Hacking Detections 30 | . 1 5 8 6 . . 3 1 4 2 Full Trace Events 4 | . . . 1 2 . . . . 1 . Feedback Events . | . . . . . . . . . . . Feedback Blocked . | . . . . . . . . . . . Robot Schematics Acquired 1 | . . . . 1 . . . . . . Robots Built 3 | . . . . . . . 3 . . . Authchips 1 | . . . . . . . 1 . . . Time 134 | . . . . . . . 134 . . . Total Robot Build Rating 12 | . . . . . . . 12 . . . Part Schematics Acquired 5 | . . 2 2 . . . 1 . . . Parts Built 1 | . . . . . . . 1 . . . Authchips 1 | . . . . . . . 1 . . . Time 134 | . . . . . . . 134 . . . Total Part Build Rating 4 | . . . . . . . 4 . . . Parts Repaired 4 | . . 1 1 . . . . 1 . 1 Time 131 | . . 26 26 . . . . 44 . 35 Parts Recycled . | . . . . . . . . . . . Recycled Matter . | . . . . . . . . . . . Retrieved Matter . | . . . . . . . . . . . Retrieved Components . | . . . . . . . . . . . Parts Scanalyzed 6 | . . 2 2 1 . . 1 . . . Part Schematics Acquired 5 | . . 2 2 . . . 1 . . . Parts Damaged . | . . . . . . . . . . . Bothacking | -11 -10 -9 -8 -7 -7 -7 -6 -5 -5 -4 ------------ Run | Yrd Mat Mat Mat Fac Low Low Fac Fac Ext Fac Used RIF Installer . | . . . . . . . . . . . Robots Hacked . | . . . . . . . . . . . Non-combat . | . . . . . . . . . . . Combat . | . . . . . . . . . . . Robot Hacks Applied . | . . . . . . . . . . . Relay Couplers Released 3 | . . . . 3 . . . . . . Machine Destruction 3 | . . . . 3 . . . . . . Fabnet Peak Effective % . | . . . . . . . . . . . Robots Rewired 7 | . . . . . . . . . 7 . Allies Hacked 1 | . . . . . . . . 1 . . Hacks Repelled . | . . . . . . . . . . . Allies | -11 -10 -9 -8 -7 -7 -7 -6 -5 -5 -4 -------- Run | Yrd Mat Mat Mat Fac Low Low Fac Fac Ext Fac Total Allies 14 | . . . . . . . 3 . 11 . Largest Group 8 | . . . . . . . 3 3 8 1 Highest-Rated Group 350 | . . . . . . . 60 60 350 39 Highest-Rated Ally 159 | . . . . . . . 20 20 159 39 Total Orders . | . . . . . . . . . . . Ally Attacks 106 | . . . . . . . 3 14 87 2 Total Damage 2449 | . . . . . . . 55 292 2090 12 Kills 20 | . . . . . . . 1 2 17 . Allies Corrupted . | . . . . . . . . . . . Allies Melted 1 | . . . . . . . . . 1 . Intel | -11 -10 -9 -8 -7 -7 -7 -6 -5 -5 -4 ------- Run | Yrd Mat Mat Mat Fac Low Low Fac Fac Ext Fac Robot Analysis Total . | . . . . . . . . . . . Derelict Logs Recovered 2 | . . . . . 2 . . . . . Drone Launches . | . . . . . . . . . . . Drone Recoveries . | . . . . . . . . . . . Exploration | -11 -10 -9 -8 -7 -7 -7 -6 -5 -5 -4 ------------- Run | Yrd Mat Mat Mat Fac Low Low Fac Fac Ext Fac Turns Passed 9073 | 75 737 671 2680 2027 491 167 677 334 599 615 Spaces Moved 3299 | 43 199 206 845 695 261 73 286 143 238 310 Core 25 | 3 . . . 1 . . . . . 21 Treads 1531 | 40 181 143 728 439 . . . . . . Legs . | . . . . . . . . . . . Wheels 1743 | . 18 63 117 255 261 73 286 143 238 289 Hover . | . . . . . . . . . . . Flight . | . . . . . . . . . . . Fastest Speed 50 | 50 160 175 155 115 115 130 145 160 160 50 Average Speed 198 | 152 307 222 242 206 126 138 146 160 160 152 Slowest Speed 1700 | 160 480 320 560 1700 130 145 160 160 160 160 Overloaded Moves . | . . . . . . . . . . . Propulsion Burnouts . | . . . . . . . . . . . Robots Hopped . | . . . . . . . . . . . Cave-ins Triggered . | . . . . . . . . . . . Exploration Rate (%) 27 | 4 43 26 79 22 49 13 6 4 42 12 Regions Visited 10 Branch Regions 3 Pre-discovered Areas . | . . . . . . . . . . . Known Exits Taken 3 | . . . . . 1 . 1 1 . . Unknown Exits Taken 7 | 1 1 1 1 1 . 1 . . 1 . Scrap Searched 3 | . . . . . 2 1 . . . . Spaces Dug 8 | . . . . . . . 6 . 1 1 Terrain Destroyed 73 | . . . . 27 . . 8 1 9 28 Melee . | . . . . . . . . . . . Projectile 47 | . . . . 27 . . 8 1 9 2 AOE 26 | . . . . . . . . . . 26 Terrain Rammed . | . . . . . . . . . . . Walls Destroyed . | . . . . . . . . . . . Machines Disabled . | . . . . . . . . . . . Actions | -11 -10 -9 -8 -7 -7 -7 -6 -5 -5 -4 --------- Run | Yrd Mat Mat Mat Fac Low Low Fac Fac Ext Fac Total 4854 | 50 244 317 1178 1057 360 104 510 229 389 416 Wait 506 | . . 28 46 68 15 8 185 67 38 51 Move 3289 | 42 198 205 844 694 260 72 285 142 237 310 Hop . | . . . . . . . . . . . Pick Up 102 | 2 2 21 27 26 7 . 4 2 6 5 Fast Attach 66 | 6 2 5 10 20 3 3 . 3 5 9 Attach 67 | . 1 4 15 22 7 1 5 2 4 6 Detach 5 | . . . . 4 . . . . . 1 Swap 31 | . 1 1 13 5 2 . 3 . . 6 Drop 46 | . 1 1 20 16 . . 1 1 1 5 Fire 656 | . 34 50 194 194 66 20 19 12 44 23 Melee . | . . . . . . . . . . . Ram 3 | . . . 1 . . . . . 2 . Kick . | . . . . . . . . . . . Crush 17 | . 5 2 8 2 . . . . . . Escape Stasis 14 | . . . . 6 . . 8 . . . Rewire 52 | . . . . . . . . . 52 . Trap . | . . . . . . . . . . . Miscellaneous . | . . . . . . . . . . . Route ------- -11/Scrapyard -10/Materials -9/Materials -8/Materials (discovered 4 exits: *Fac x3 / [*Sto]) -7/Factory -7/Lower Caves -7/Lower Caves -6/Factory -5/Factory (discovered 4 exits: Upp x2 / *Ext x2) -5/Extension -4/Factory History --------- Turn | Location | Event 20 | -11/Scrapyard | Discovered new exit (range 15) 76 | -11/Scrapyard | Entered Materials 302 | -10/Materials | Build established: Mutant 743 | -10/Materials | Discovered new exit (range 16) 813 | -10/Materials | Entered another Materials area 813 | -9/Materials | Evolved 2 slots: Propulsion x1, Utility x1 1376 | -9/Materials | Repaired Lgt. Treads 1432 | -9/Materials | Discovered new exit (range 16) 1484 | -9/Materials | Entered another Materials area 1484 | -8/Materials | Evolved 2 slots: Utility x2 1611 | -8/Materials | Lost 3 parts (2n1u) 1691 | -8/Materials | Discovered new exit (range 14) 1869 | -8/Materials | Build established: Scavenger-Mutant 1954 | -8/Materials | Lost 5 parts (1p2n1u1w) 2263 | -8/Materials | Repaired Lgt. Treads 2381 | -8/Materials | Discovered new exit (range 16) 2659 | -8/Materials | Discovered new exit (range 10) 3126 | -8/Materials | Build established: Mutant 3342 | -8/Materials | Core integrity fell below 50% 3791 | -8/Materials | Discovered new exit (range 15) 3884 | -8/Materials | First assault squad dispatched 4164 | -8/Materials | Entered Factory 4164 | -7/Factory | Evolved 2 slots: Propulsion x1, Utility x1 4380 | -7/Factory | Build established: Scavenger-Mutant 5038 | -7/Factory | Destroyed 7 combat bots 5043 | -7/Factory | Lost 10 parts (1p4n3u2w) 5419 | -7/Factory | Lost 3 parts (2n1u) 5665 | -7/Factory | Build established: Mutant 5666 | -7/Factory | Lost 5 parts (1p2n2u) 5897 | -7/Factory | Garrison activated, responded to threat 6145 | -7/Factory | Discovered new exit (range 14) 6191 | -7/Factory | Entered Lower Caves 6224 | -7/Lower Caves | Core integrity fell below 50% 6315 | -7/Lower Caves | Lost 8 parts (1p5u2w) 6374 | -7/Lower Caves | Found Imp. Powered Armor 6510 | -7/Lower Caves | Identified exit to Lower Caves 6520 | -7/Lower Caves | Learned location of 1 exit from Factory 6627 | -7/Lower Caves | Spotted B-75 Beast 6682 | -7/Lower Caves | Entered another Lower Caves area 6694 | -7/Lower Caves | Encountered a Warlord checkpoint 6744 | -7/Lower Caves | Core integrity fell below 20% 6810 | -7/Lower Caves | Lost 6 parts (3n3u) 6818 | -7/Lower Caves | Discovered new exit (range 8) 6849 | -7/Lower Caves | Entered Factory 6849 | -6/Factory | Evolved 2 slots: Utility x2 6850 | -6/Factory | Identified exit to Factory 7245 | -6/Factory | Fabricated B-48 Gladiator (x3) 7321 | -6/Factory | Fabricated Cld. Particle Cannon (x1) 7526 | -6/Factory | Entered another Factory area 7526 | -5/Factory | Accompanied by 3 allies 7526 | -5/Factory | Evolved 2 slots: Utility x2 7662 | -5/Factory | Repaired Arm. Huge Wheel 7726 | -5/Factory | P-70 Sage assimilated allied Gladiator 5c 7822 | -5/Factory | Identified exit to Upper Caves 7822 | -5/Factory | Identified exit to Extension 7860 | -5/Factory | Entered Extension 7861 | -5/Extension | Disrupted transfer network 7940 | -5/Extension | Rescued a captive Derelict 7998 | -5/Extension | Rescued a captive Derelict 8079 | -5/Extension | Lost 4 parts (1p3u) 8098 | -5/Extension | Build established: Scavenger-Mutant 8163 | -5/Extension | Rescued A7 8261 | -5/Extension | Rescued a captive Derelict 8318 | -5/Extension | Spotted B-75 Beast 8331 | -5/Extension | Spotted B-75 Beast 8349 | -5/Extension | Destroyed B-75 Beast 8361 | -5/Extension | Allies destroyed B-75 Beast 8366 | -5/Extension | Extracted ID and sensor layout for unrecognized location from A7's data core 8404 | -5/Extension | Lost 7 allies 8406 | -5/Extension | Lost 3 parts (2u1w) 8430 | -5/Extension | Discovered new exit (range 3) 8459 | -5/Extension | Entered Factory 8459 | -4/Factory | Accompanied by 1 ally 8459 | -4/Factory | Evolved 2 slots: Utility x2 8673 | -4/Factory | Repaired Cld. Particle Cannon 8981 | -4/Factory | Garrison activated, responded to threat 9062 | -4/Factory | Core integrity fell below 50% 9064 | -4/Factory | Released all parts (4) 9068 | -4/Factory | Core integrity fell below 20% 9074 | -4/Factory | Destroyed by H-71 Marshal with Heavy Mass Driver Last Messages --------------- 09058_ G-67 Veteran IFF system glitched. 09059_ G-67 Veteran destroyed. 09059_ Adv. Transmission Jammer destroyed. 09059_ Knocked back. 09061_ Adv. Cooling System destroyed. 09064_ The unstable cave ceiling collapses. 09064_ Penetrated by Slug. 09064_ Released Mni. Grenade Launcher. 09064_ Released Imp. Thermal Shield. 09064_ Released Huge Storage Unit. 09064_ Released Graphene Brace. 09065_ Knocked back. 09066_ Penetrated by Slug. 09067_ The unstable cave ceiling collapses. 09067_ Knocked back. 09069_ Slug penetrates H-71 Marshal. 09069_ Penetrated by Slug. 09069_ Knocked back. 09070_ K-01 Serf collects debris. 09074_ Penetrated by Slug. Map ----- +----------------------------------------------------+ | | | | | | | | | | | | | | | | | | | | | | | | | | | | | | | | | | | ?####!%]%][# # #####????#????#?#??###?????????? | | ?# ]!!%!]![ "" #????#????????#?#??????????? | | ?#####!/]!!% =%[ "Y" #???????#??????????????????? | | #??# [!!! = * #???##???????#??#????#?????? | | ???#### % ! #??##?#????#???????????????? | | #????# % #??????????????????????????? | | ?????# #?#??###???????????????????? | | ####### ;; #####T ############?????#??? | | @% ????????? | | ????????? | | ????????? | | ?? ?? ??? | | ????????? | | %! =%* w ????? ??? | | [%H A ????????? | | ########### !%%%!;################???#?????? | | #???#?????# *="" #????????????????????????? | | ???#??????#^ = """###????????#?????????????? | | ??????????# !%] T"#????????????????????????? | | ??"????"??# *%!k """#??#???????#?#?????????#?? | | ? ?? ?????# * = "" ???#?????????????????#???? | | ????????? # #????#????????#?#???????????? | | ? ????????+ !! #??#???????#????????????????? | | ???"??????# ##"" ""##???#???????#????????????????? | | #???"???"?# ?#""T""??????????????????????????????? | | ??????"???? ???""?????????#??????#????#??????????? | | ??????????? ???#??????#??????????????#???#???????? | | ? ? ??????? ?????#??#?????????????#???????#??????? | | ?? ???????#? ???#?????????????#??????????????????? | | ????????????????????????????????????????????????? | | ?#????##????#????????????????????????????????????? | | ??#??????????#????????#???????#?#????????????????? | | ???#??????????????#?#????????????????????????????? | +----------------------------------------------------+ Best States ------------- Heat Dissipation 105 Coolant Potential 50 Energy Generation 23 Energy Capacity 510 Matter Stores 352 Matter Capacity 400 Sight Range 16 Terrain Scan Range 24 Terrain Scan Density 10 Jamming Range 16 Cloak Strength 3 Power Amplification 30 Armor Coverage 975 Resistance: KI 20 Resistance: TH 25 Core Shielding 20 Propulsion Shielding 66 Weapon Shielding 33 Weapon Cycling 15 Phase Shifting 5 Evasion (%) 50 Targeting Accuracy 8 Recoil Reduction 4 Matter Filtering 50 Particle Charging 20 Salvage Targeting 1 Offensive Hacking 10 Authchip Count 6 Item Schematics ----------------- Hvy. Assault Rifle | -9/Materials | Scanalyzed Heat Sink | -9/Materials | Scanalyzed Hrd. Heavy Armor Plating | -8/Materials | Scanalyzed Disposable Heat Sink | -8/Materials | Scanalyzed Cld. Particle Cannon | -6/Factory | Scanalyzed Robot Schematics ------------------ B-48 Gladiator | -7/Factory | Hacked Fabricated ------------ B-48 Gladiator | x3 | -6/Factory | Authchip Cld. Particle Cannon | x1 | -6/Factory | Authchip Alien Tech Used ----------------- None Achievements -------------- None Challenges ------------ None Game ------ Seed AdvancedFocalMount Manual? 0 Play Time 01:06:08 Cumulative 343.4 hours Start 2024.05.10 @ 01:39:41 End 2024.05.10 @ 02:44:40 Sessions 1 Manual Loads 0 Difficulty Rogue Special Mode None Game No. 253 Rogue 253 Adventurer 0 Explorer 0 Win Type - Total 12 Types 8/0/3/1/0/0/0/0/0 Lore% 80 Gallery% 88 Achievement% 75 Wizard Run 0 Options --------- Layout 2 ASCII 1 Keyboard 0 Movement Mouse Keybinds 0 Fullscreen 2 Font 24/Smallcaps Map View 50x44 Zoom Use 0% Tactical HUD 1 Map Filters NONE Filters NONE Steam 1 RUN: d5211c8d-7b3e-44ea-adc8-24bd9bb08e50